[Event "Late-Titled-Tuesday-Blitz-October-17-2023"]
[Site "Chess.com"]
[Date "2023.10.17"]
[Round "10"]
[White "vugarrasulov"]
[Black "eljanov"]
[Result "1-0"]
[WhiteElo "2973"]
[BlackElo "2854"]
[TimeControl "180+1"]
[EndTime "15:52:14 PDT"]
[Termination "vugarrasulov won on time"]

1. Nf3 {[%clk 0:03:00.9]} 1... d5 {[%clk 0:02:59.6]} 2. c4 {[%clk 0:03:01.3]}
2... d4 {[%clk 0:02:55.6]} 3. g3 {[%clk 0:03:00.4]} 3... c5 {[%clk 0:02:53.3]}
4. Bg2 {[%clk 0:02:59.6]} 4... Nc6 {[%clk 0:02:53.6]} 5. O-O {[%clk 0:03:00.2]}
5... e5 {[%clk 0:02:53.7]} 6. d3 {[%clk 0:02:59.8]} 6... Nf6 {[%clk 0:02:29.9]}
7. e3 {[%clk 0:02:54.6]} 7... Be7 {[%clk 0:02:29.6]} 8. exd4 {[%clk 0:02:52.7]}
8... exd4 {[%clk 0:02:30.5]} 9. Bf4 {[%clk 0:02:48.5]} 9... O-O {[%clk
0:02:30.3]} 10. Ne5 {[%clk 0:02:47]} 10... Nxe5 {[%clk 0:02:30.4]} 11. Bxe5
{[%clk 0:02:47.9]} 11... Bd6 {[%clk 0:02:14.5]} 12. Bxf6 {[%clk 0:02:47.7]}
12... Qxf6 {[%clk 0:02:14.9]} 13. Nd2 {[%clk 0:02:48.4]} 13... Qd8 {[%clk
0:02:14.2]} 14. a3 {[%clk 0:02:45.5]} 14... a5 {[%clk 0:02:09.5]} 15. Re1 {[%clk
0:02:45.3]} 15... Ra6 {[%clk 0:02:01.7]} 16. Bd5 {[%clk 0:02:36.9]} 16... a4
{[%clk 0:01:52.4]} 17. Rb1 {[%clk 0:02:29.1]} 17... Qc7 {[%clk 0:01:27]} 18. Ne4
{[%clk 0:02:15.4]} 18... Be7 {[%clk 0:01:26.3]} 19. b4 {[%clk 0:02:12.2]} 19...
axb3 {[%clk 0:01:23.5]} 20. Rxb3 {[%clk 0:02:06.1]} 20... b6 {[%clk 0:01:19.8]}
21. Qh5 {[%clk 0:02:03.9]} 21... g6 {[%clk 0:01:08.1]} 22. Qh6 {[%clk
0:02:00.5]} 22... Bb7 {[%clk 0:01:07.5]} 23. Bxb7 {[%clk 0:01:40.1]} 23... Qxb7
{[%clk 0:01:07.3]} 24. Qf4 {[%clk 0:01:39.3]} 24... Qc6 {[%clk 0:00:54.2]} 25.
Qe5 {[%clk 0:01:27.5]} 25... Bd8 {[%clk 0:00:47.1]} 26. h4 {[%clk 0:01:21.6]}
26... Ra7 {[%clk 0:00:38]} 27. Reb1 {[%clk 0:01:06.8]} 27... Re7 {[%clk
0:00:27.2]} 28. Qd5 {[%clk 0:00:41.4]} 28... Re6 {[%clk 0:00:19.4]} 29. h5
{[%clk 0:00:21.1]} 29... Qxd5 {[%clk 0:00:19]} 30. cxd5 {[%clk 0:00:21]} 30...
Re5 {[%clk 0:00:19.2]} 31. hxg6 {[%clk 0:00:21.3]} 31... hxg6 {[%clk 0:00:18.4]}
32. d6 {[%clk 0:00:20.4]} 32... Kg7 {[%clk 0:00:17.8]} 33. Nd2 {[%clk
0:00:19.8]} 33... Rfe8 {[%clk 0:00:07.9]} 34. Nc4 {[%clk 0:00:13]} 34... Rd5
{[%clk 0:00:07.3]} 35. a4 {[%clk 0:00:12.1]} 35... Re6 {[%clk 0:00:06.3]} 36.
Kg2 {[%clk 0:00:12.1]} 36... g5 {[%clk 0:00:05.7]} 37. Rb5 {[%clk 0:00:12.3]}
37... g4 {[%clk 0:00:03.9]} 38. a5 {[%clk 0:00:12.5]} 38... bxa5 {[%clk
0:00:03.8]} 39. Rb8 {[%clk 0:00:13.4]} 39... Bg5 {[%clk 0:00:02.2]} 40. Rh1
{[%clk 0:00:12.3]} 40... Rexd6 {[%clk 0:00:01.8]} 41. Nxd6 {[%clk 0:00:12]}
41... Rxd6 {[%clk 0:00:02.7]} 42. Ra8 {[%clk 0:00:12.5]} 42... c4 {[%clk
0:00:03.1]} 43. dxc4 {[%clk 0:00:12.3]} 43... d3 {[%clk 0:00:02.8]} 44. Rxa5
{[%clk 0:00:12.6]} 44... f6 {[%clk 0:00:03.3]} 45. Rd5 {[%clk 0:00:12.5]} 45...
Rc6 {[%clk 0:00:03.2]} 46. Rxd3 {[%clk 0:00:11.4]} 46... Rxc4 {[%clk 0:00:03.3]}
47. Rd7+ {[%clk 0:00:12.1]} 47... Kg6 {[%clk 0:00:03.5]} 48. Rh8 {[%clk
0:00:12]} 48... Rb4 {[%clk 0:00:02.4]} 49. Rg8+ {[%clk 0:00:12.3]} 49... Kf5
{[%clk 0:00:02.8]} 50. Rd5+ {[%clk 0:00:12.8]} 50... Ke6 {[%clk 0:00:02.4]} 51.
Ra5 {[%clk 0:00:12.8]} 51... Rc4 {[%clk 0:00:02.5]} 52. Re8+ {[%clk 0:00:12.3]}
52... Kf7 {[%clk 0:00:02.7]} 53. Rb8 {[%clk 0:00:12.1]} 53... Kg6 {[%clk
0:00:03.1]} 54. Rba8 {[%clk 0:00:10.7]} 54... Rc2 {[%clk 0:00:03.4]} 55. Ra4
{[%clk 0:00:10.8]} 55... Be3 {[%clk 0:00:02.5]} 56. Rxg4+ {[%clk 0:00:08.9]}
56... Kf5 {[%clk 0:00:02.7]} 57. Kh3 {[%clk 0:00:08.9]} 57... Rxf2 {[%clk
0:00:02.5]} 58. Ra5+ {[%clk 0:00:09]} 1-0

[Event "Late-Titled-Tuesday-Blitz-October-17-2023"]
[Site "Chess.com"]
[Date "2023.10.17"]
[Round "10"]
[White "NormWeinstein"]
[Black "HajiyevKanan"]
[Result "0-1"]
[WhiteElo "2408"]
[BlackElo "2545"]
[TimeControl "180+1"]
[EndTime "15:52:16 PDT"]
[Termination "HajiyevKanan won by resignation"]

1. e4 {[%clk 0:02:59.1]} 1... c6 {[%clk 0:02:47.6]} 2. d4 {[%clk 0:02:58.6]}
2... d5 {[%clk 0:02:48.5]} 3. exd5 {[%clk 0:02:58.8]} 3... cxd5 {[%clk
0:02:49.4]} 4. c4 {[%clk 0:02:59]} 4... Nf6 {[%clk 0:02:48.3]} 5. Nc3 {[%clk
0:02:59.2]} 5... e6 {[%clk 0:02:48.6]} 6. Nf3 {[%clk 0:02:59.3]} 6... Bb4 {[%clk
0:02:48.8]} 7. cxd5 {[%clk 0:02:59.1]} 7... Nxd5 {[%clk 0:02:48.5]} 8. Qc2
{[%clk 0:02:59.2]} 8... Nc6 {[%clk 0:02:49.1]} 9. Bd3 {[%clk 0:02:58.4]} 9... h6
{[%clk 0:02:48.3]} 10. O-O {[%clk 0:02:57.9]} 10... Be7 {[%clk 0:02:43.3]} 11.
a3 {[%clk 0:02:57.4]} 11... O-O {[%clk 0:02:41.6]} 12. Qe2 {[%clk 0:02:57.1]}
12... Nf6 {[%clk 0:02:37.8]} 13. Be3 {[%clk 0:02:54.2]} 13... b6 {[%clk
0:02:38.3]} 14. Rad1 {[%clk 0:02:52.7]} 14... Bb7 {[%clk 0:02:38.4]} 15. Rfe1
{[%clk 0:02:52.2]} 15... Rc8 {[%clk 0:02:31.8]} 16. Ne5 {[%clk 0:02:48.2]} 16...
Nd5 {[%clk 0:02:19.8]} 17. Nxd5 {[%clk 0:02:09.3]} 17... Qxd5 {[%clk 0:02:18.2]}
18. Bc4 {[%clk 0:02:06.7]} 18... Qe4 {[%clk 0:02:12.7]} 19. f3 {[%clk
0:02:02.3]} 19... Qh4 {[%clk 0:02:02.8]} 20. Bf2 {[%clk 0:01:51.4]} 20... Qg5
{[%clk 0:01:38]} 21. h4 {[%clk 0:01:50.8]} 21... Qf4 {[%clk 0:01:09.8]} 22. g3
{[%clk 0:01:39.8]} 22... Qf5 {[%clk 0:01:00.9]} 23. Bd3 {[%clk 0:01:39.3]} 23...
Qh3 {[%clk 0:00:51]} 24. Be4 {[%clk 0:01:30]} 24... Nxe5 {[%clk 0:00:42.1]} 25.
Bxb7 {[%clk 0:01:23.6]} 25... Rc7 {[%clk 0:00:42.6]} 26. Be4 {[%clk 0:01:18.5]}
26... Nc4 {[%clk 0:00:26.5]} 27. d5 {[%clk 0:01:14.8]} 27... exd5 {[%clk
0:00:20.6]} 28. Bxd5 {[%clk 0:01:14.5]} 28... b5 {[%clk 0:00:20.4]} 29. f4
{[%clk 0:01:07]} 29... Qc8 {[%clk 0:00:16.6]} 30. Bd4 {[%clk 0:01:02.3]} 30...
Bc5 {[%clk 0:00:15.4]} 31. Qf2 {[%clk 0:00:59.4]} 31... Bxd4 {[%clk 0:00:14.4]}
32. Qxd4 {[%clk 0:00:59.4]} 32... Rd7 {[%clk 0:00:10.7]} 33. Kh2 {[%clk
0:00:51.7]} 33... Rfd8 {[%clk 0:00:09]} 34. Qe4 {[%clk 0:00:42]} 34... Nxb2
{[%clk 0:00:09.1]} 35. Rd4 {[%clk 0:00:39.8]} 35... Na4 {[%clk 0:00:08.4]} 36.
Qf3 {[%clk 0:00:35.6]} 36... Nb6 {[%clk 0:00:07.9]} 37. Red1 {[%clk 0:00:32.4]}
37... Nxd5 {[%clk 0:00:08.2]} 38. Rxd5 {[%clk 0:00:32.4]} 38... Rxd5 {[%clk
0:00:09.1]} 39. Rxd5 {[%clk 0:00:32.2]} 39... Rxd5 {[%clk 0:00:09.9]} 40. Qxd5
{[%clk 0:00:32.5]} 40... a6 {[%clk 0:00:08.6]} 41. Qd6 {[%clk 0:00:27.2]} 41...
h5 {[%clk 0:00:06.3]} 42. f5 {[%clk 0:00:26.4]} 42... Qxf5 {[%clk 0:00:05.6]}
43. Qxa6 {[%clk 0:00:26.4]} 43... g6 {[%clk 0:00:04.9]} 44. Qa5 {[%clk
0:00:25.5]} 44... Qf2+ {[%clk 0:00:04.8]} 45. Kh3 {[%clk 0:00:25.7]} 45... Qf1+
{[%clk 0:00:05.5]} 46. Kh2 {[%clk 0:00:25.9]} 46... Qc4 {[%clk 0:00:06.4]} 47.
Qd8+ {[%clk 0:00:22.7]} 47... Kg7 {[%clk 0:00:06.9]} 48. Qd6 {[%clk 0:00:20.8]}
48... Qa2+ {[%clk 0:00:06.5]} 49. Kh3 {[%clk 0:00:20.6]} 49... Qc4 {[%clk
0:00:07.4]} 50. Kh2 {[%clk 0:00:20.2]} 50... Qe2+ {[%clk 0:00:07.5]} 51. Kh3
{[%clk 0:00:20.3]} 51... Qf1+ {[%clk 0:00:08.3]} 52. Kh2 {[%clk 0:00:20.4]}
52... Qf2+ {[%clk 0:00:08.5]} 53. Kh3 {[%clk 0:00:20.8]} 53... Qg1 {[%clk
0:00:07.5]} 54. Qe5+ {[%clk 0:00:17.3]} 54... Kh7 {[%clk 0:00:08]} 55. Qd5
{[%clk 0:00:17]} 55... Qf1+ {[%clk 0:00:07.2]} 56. Kh2 {[%clk 0:00:16.9]} 56...
Qc4 {[%clk 0:00:07.9]} 57. Qf3 {[%clk 0:00:15.2]} 57... Qa2+ {[%clk 0:00:07.9]}
58. Kh3 {[%clk 0:00:14.5]} 58... Qe6+ {[%clk 0:00:08.8]} 59. Kh2 {[%clk
0:00:11.2]} 59... Qd7 {[%clk 0:00:09.4]} 60. Qb3 {[%clk 0:00:09.1]} 60... Qb7
{[%clk 0:00:08]} 61. Qf3 {[%clk 0:00:07.9]} 61... Qxf3 {[%clk 0:00:07.5]} 0-1

[Event "Late-Titled-Tuesday-Blitz-October-17-2023"]
[Site "Chess.com"]
[Date "2023.10.17"]
[Round "10"]
[White "leoduarte"]
[Black "ritanovikova"]
[Result "1-0"]
[WhiteElo "2395"]
[BlackElo "2155"]
[TimeControl "180+1"]
[EndTime "15:52:16 PDT"]
[Termination "leoduarte won on time"]

1. d4 {[%clk 0:03:00.9]} 1... e6 {[%clk 0:02:57.9]} 2. Nf3 {[%clk 0:03:01.2]}
2... Nf6 {[%clk 0:02:58.2]} 3. Bf4 {[%clk 0:03:01.3]} 3... d5 {[%clk 0:02:56.8]}
4. e3 {[%clk 0:03:01.8]} 4... Bd6 {[%clk 0:02:56.6]} 5. c3 {[%clk 0:03:02.3]}
5... Bxf4 {[%clk 0:02:56.2]} 6. exf4 {[%clk 0:03:03.2]} 6... c5 {[%clk
0:02:55.8]} 7. Bd3 {[%clk 0:03:01.1]} 7... b6 {[%clk 0:02:54.5]} 8. Nbd2 {[%clk
0:02:59.9]} 8... O-O {[%clk 0:02:53.5]} 9. Qe2 {[%clk 0:02:52.5]} 9... Nc6
{[%clk 0:02:47.5]} 10. Ne5 {[%clk 0:02:46.5]} 10... Bb7 {[%clk 0:02:40.9]} 11.
Ndf3 {[%clk 0:02:44.1]} 11... cxd4 {[%clk 0:02:39.3]} 12. Nxc6 {[%clk
0:02:41.3]} 12... Bxc6 {[%clk 0:02:39.6]} 13. Nxd4 {[%clk 0:02:41.9]} 13... Bb7
{[%clk 0:02:34.1]} 14. O-O {[%clk 0:02:41.5]} 14... Re8 {[%clk 0:02:33.2]} 15.
Rae1 {[%clk 0:02:37]} 15... Qc7 {[%clk 0:02:30.6]} 16. Qe5 {[%clk 0:02:28.5]}
16... Rac8 {[%clk 0:02:20.2]} 17. f5 {[%clk 0:01:51.9]} 17... exf5 {[%clk
0:02:11.6]} 18. Qxc7 {[%clk 0:01:46.7]} 18... Rxc7 {[%clk 0:02:10.4]} 19. Nxf5
{[%clk 0:01:47.2]} 19... g6 {[%clk 0:02:00.5]} 20. Nd6 {[%clk 0:01:30.6]} 20...
Rxe1 {[%clk 0:01:58.9]} 21. Rxe1 {[%clk 0:01:31.5]} 21... Rd7 {[%clk 0:01:50.4]}
22. Nb5 {[%clk 0:01:23.3]} 22... Ba6 {[%clk 0:01:46.3]} 23. f3 {[%clk
0:01:15.8]} 23... d4 {[%clk 0:01:29.4]} 24. cxd4 {[%clk 0:01:10.3]} 24... Bxb5
{[%clk 0:01:28.7]} 25. Bxb5 {[%clk 0:01:11]} 25... Rxd4 {[%clk 0:01:29.1]} 26.
Re7 {[%clk 0:01:11.4]} 26... Rb4 {[%clk 0:01:21.4]} 27. a4 {[%clk 0:01:07.5]}
27... a6 {[%clk 0:00:52.4]} 28. Bxa6 {[%clk 0:00:58]} 28... Rxa4 {[%clk
0:00:52.3]} 29. Bd3 {[%clk 0:00:42.4]} 29... Kf8 {[%clk 0:00:47.9]} 30. Rb7
{[%clk 0:00:41.8]} 30... Rb4 {[%clk 0:00:47.8]} 31. b3 {[%clk 0:00:36]} 31...
Nd5 {[%clk 0:00:38.4]} 32. Bc4 {[%clk 0:00:34.3]} 32... Ne7 {[%clk 0:00:36.3]}
33. Rb8+ {[%clk 0:00:29.6]} 33... Kg7 {[%clk 0:00:36]} 34. Rb7 {[%clk
0:00:30.5]} 34... Kf6 {[%clk 0:00:35.5]} 35. Kf2 {[%clk 0:00:28.8]} 35... g5
{[%clk 0:00:21.2]} 36. Ke2 {[%clk 0:00:28.1]} 36... b5 {[%clk 0:00:18.6]} 37.
Rxb5 {[%clk 0:00:25.3]} 37... Rxb5 {[%clk 0:00:18.4]} 38. Bxb5 {[%clk
0:00:26.2]} 38... Nd5 {[%clk 0:00:18.4]} 39. Bc4 {[%clk 0:00:22.9]} 39... Nf4+
{[%clk 0:00:18.1]} 40. Kf2 {[%clk 0:00:23.5]} 40... Ke7 {[%clk 0:00:17.4]} 41.
g3 {[%clk 0:00:23.5]} 41... Ng6 {[%clk 0:00:16.8]} 42. Bd3 {[%clk 0:00:23.3]}
42... Nf8 {[%clk 0:00:16.1]} 43. Ke3 {[%clk 0:00:22.9]} 43... h6 {[%clk
0:00:15.4]} 44. b4 {[%clk 0:00:21.5]} 44... Kd6 {[%clk 0:00:15.7]} 45. b5 {[%clk
0:00:20.7]} 45... Ne6 {[%clk 0:00:15.1]} 46. Be2 {[%clk 0:00:20.1]} 46... Kc5
{[%clk 0:00:13.2]} 47. Ke4 {[%clk 0:00:19.4]} 47... Nd4 {[%clk 0:00:12.4]} 48.
Bd3 {[%clk 0:00:17.2]} 48... f5+ {[%clk 0:00:11.2]} 49. Ke5 {[%clk 0:00:17]}
49... Nxf3+ {[%clk 0:00:11]} 50. Kxf5 {[%clk 0:00:16]} 50... Nxh2 {[%clk
0:00:10.2]} 51. Kg6 {[%clk 0:00:15.9]} 51... Ng4 {[%clk 0:00:05.4]} 52. Be2
{[%clk 0:00:13.3]} 52... Ne5+ {[%clk 0:00:04.8]} 53. Kxh6 {[%clk 0:00:12.9]}
53... g4 {[%clk 0:00:02.1]} 54. Kg5 {[%clk 0:00:12.5]} 1-0

[Event "Late-Titled-Tuesday-Blitz-October-17-2023"]
[Site "Chess.com"]
[Date "2023.10.17"]
[Round "10"]
[White "FabianoCaruana"]
[Black "Baku_Boulevard"]
[Result "1/2-1/2"]
[WhiteElo "3107"]
[BlackElo "3022"]
[TimeControl "180+1"]
[EndTime "15:52:26 PDT"]
[Termination "Game drawn by agreement"]

1. e4 {[%clk 0:03:00.9]} 1... c5 {[%clk 0:03:00.1]} 2. Nf3 {[%clk 0:03:01.4]}
2... d6 {[%clk 0:02:59.8]} 3. Bb5+ {[%clk 0:03:01.6]} 3... Bd7 {[%clk
0:02:58.5]} 4. c4 {[%clk 0:03:00.8]} 4... Nf6 {[%clk 0:02:57.2]} 5. Nc3 {[%clk
0:03:00.8]} 5... g6 {[%clk 0:02:56.7]} 6. Bxd7+ {[%clk 0:03:01]} 6... Qxd7
{[%clk 0:02:53.3]} 7. d4 {[%clk 0:03:01.2]} 7... cxd4 {[%clk 0:02:53.5]} 8. Qxd4
{[%clk 0:03:02.1]} 8... Nc6 {[%clk 0:02:53.7]} 9. Qd3 {[%clk 0:03:02.2]} 9...
Bg7 {[%clk 0:02:54.3]} 10. O-O {[%clk 0:03:02.7]} 10... O-O {[%clk 0:02:54.7]}
11. Bd2 {[%clk 0:03:03]} 11... Rfc8 {[%clk 0:02:54.8]} 12. b3 {[%clk 0:02:58.1]}
12... Qd8 {[%clk 0:02:46.3]} 13. Rac1 {[%clk 0:02:56.7]} 13... a6 {[%clk
0:02:46.7]} 14. a4 {[%clk 0:02:53.8]} 14... Nd7 {[%clk 0:02:43.3]} 15. Qb1
{[%clk 0:02:46.1]} 15... Nc5 {[%clk 0:02:28.3]} 16. Be3 {[%clk 0:02:46.1]} 16...
e6 {[%clk 0:02:11.2]} 17. b4 {[%clk 0:02:39.6]} 17... Nd7 {[%clk 0:02:09.8]} 18.
Rfd1 {[%clk 0:02:38.8]} 18... Qe7 {[%clk 0:02:09.4]} 19. Ne2 {[%clk 0:02:29.7]}
19... Nce5 {[%clk 0:02:07.1]} 20. Nxe5 {[%clk 0:02:29.8]} 20... Nxe5 {[%clk
0:02:07.7]} 21. c5 {[%clk 0:02:30.2]} 21... dxc5 {[%clk 0:02:08.2]} 22. Bxc5
{[%clk 0:02:27.9]} 22... Qe8 {[%clk 0:02:08.3]} 23. a5 {[%clk 0:02:26.4]} 23...
Rd8 {[%clk 0:02:05.6]} 24. h3 {[%clk 0:02:24]} 24... Rxd1+ {[%clk 0:01:56.8]}
25. Rxd1 {[%clk 0:02:24.9]} 25... Rd8 {[%clk 0:01:57.1]} 26. Nd4 {[%clk
0:02:20.5]} 26... h5 {[%clk 0:01:54.6]} 27. Bb6 {[%clk 0:02:15.4]} 27... Rd7
{[%clk 0:01:49.7]} 28. b5 {[%clk 0:02:12.2]} 28... Nc4 {[%clk 0:01:46.8]} 29.
bxa6 {[%clk 0:02:10.9]} 29... bxa6 {[%clk 0:01:45.5]} 30. Nf3 {[%clk 0:02:04.6]}
30... Rb7 {[%clk 0:01:26]} 31. Qb4 {[%clk 0:01:57.6]} 31... Nxb6 {[%clk
0:01:20]} 32. axb6 {[%clk 0:01:58.5]} 32... Bf8 {[%clk 0:01:19]} 33. Qd4 {[%clk
0:01:24.9]} 33... Qb5 {[%clk 0:01:12.8]} 34. Ne5 {[%clk 0:01:24]} 34... Qxb6
{[%clk 0:01:04.5]} 35. Qxb6 {[%clk 0:01:15.7]} 35... Rxb6 {[%clk 0:01:04.5]} 36.
Rd8 {[%clk 0:01:16.2]} 36... Rd6 {[%clk 0:00:54.9]} 37. Ra8 {[%clk 0:01:13.3]}
37... Kg7 {[%clk 0:00:51.6]} 38. g3 {[%clk 0:01:10.1]} 38... Rd1+ {[%clk
0:00:48.6]} 39. Kg2 {[%clk 0:01:10.2]} 39... Bd6 {[%clk 0:00:48.7]} 40. Nf3
{[%clk 0:01:03.4]} 40... Ra1 {[%clk 0:00:46.7]} 41. e5 {[%clk 0:00:56.1]} 41...
Be7 {[%clk 0:00:20.8]} 42. Ra7 {[%clk 0:00:53.8]} 42... Kf8 {[%clk 0:00:20.7]}
43. Nd2 {[%clk 0:00:38.1]} 43... Ra2 {[%clk 0:00:19.1]} 44. Ne4 {[%clk
0:00:38.4]} 44... g5 {[%clk 0:00:15.1]} 45. g4 {[%clk 0:00:33.8]} 45... hxg4
{[%clk 0:00:14.8]} 46. hxg4 {[%clk 0:00:34.7]} 46... Ra4 {[%clk 0:00:15]} 47.
Kf3 {[%clk 0:00:33.6]} 47... Ra3+ {[%clk 0:00:15.1]} 48. Ke2 {[%clk 0:00:33.4]}
48... Ra5 {[%clk 0:00:15.7]} 49. Kf3 {[%clk 0:00:28.9]} 49... Rxe5 {[%clk
0:00:15.8]} 50. Rxa6 {[%clk 0:00:29.4]} 50... Kg7 {[%clk 0:00:15.7]} 51. Ra7
{[%clk 0:00:29.4]} 51... Bb4 {[%clk 0:00:14.3]} 52. Rb7 {[%clk 0:00:29]} 52...
Bf8 {[%clk 0:00:13.9]} 53. Ng3 {[%clk 0:00:29.4]} 53... Kg6 {[%clk 0:00:14.1]}
54. Rb8 {[%clk 0:00:28.9]} 54... Bd6 {[%clk 0:00:12.7]} 55. Rd8 {[%clk 0:00:29]}
55... Rd5 {[%clk 0:00:12.1]} 56. Ne4 {[%clk 0:00:29.1]} 56... Be7 {[%clk
0:00:11.9]} 57. Re8 {[%clk 0:00:27.9]} 57... Bb4 {[%clk 0:00:10.9]} 58. Rg8+
{[%clk 0:00:27.6]} 58... Kh6 {[%clk 0:00:11.4]} 59. Nf6 {[%clk 0:00:25.1]} 59...
Rd4 {[%clk 0:00:11.3]} 60. Ne4 {[%clk 0:00:18.6]} 60... Rd3+ {[%clk 0:00:08.8]}
61. Kg2 {[%clk 0:00:18.5]} 61... Rd5 {[%clk 0:00:09.3]} 62. Nf6 {[%clk
0:00:15.1]} 62... Rd4 {[%clk 0:00:08.4]} 63. f3 {[%clk 0:00:13.6]} 63... Be7
{[%clk 0:00:08.6]} 64. Ne4 {[%clk 0:00:12.4]} 64... f5 {[%clk 0:00:08.7]} 65.
gxf5 {[%clk 0:00:11.9]} 65... exf5 {[%clk 0:00:09.6]} 66. Ng3 {[%clk 0:00:12.3]}
66... Rd5 {[%clk 0:00:09.1]} 67. Re8 {[%clk 0:00:12.4]} 67... Bd6 {[%clk
0:00:07.6]} 68. Re6+ {[%clk 0:00:12.8]} 68... Kh7 {[%clk 0:00:07.2]} 69. Nxf5
{[%clk 0:00:09.3]} 69... Rxf5 {[%clk 0:00:07.4]} 70. Rxd6 {[%clk 0:00:09.3]}
70... Kg7 {[%clk 0:00:07.7]} 71. Rd4 {[%clk 0:00:09.5]} 71... Kg6 {[%clk
0:00:06.5]} 1/2-1/2

[Event "Late-Titled-Tuesday-Blitz-October-17-2023"]
[Site "Chess.com"]
[Date "2023.10.17"]
[Round "10"]
[White "marik_spb"]
[Black "Mikhail_Golubev"]
[Result "1-0"]
[WhiteElo "2444"]
[BlackElo "2546"]
[TimeControl "180+1"]
[EndTime "15:52:28 PDT"]
[Termination "marik_spb won on time"]

1. d4 {[%clk 0:03:00.9]} 1... Nf6 {[%clk 0:02:59.3]} 2. c4 {[%clk 0:03:01.3]}
2... g6 {[%clk 0:02:58.9]} 3. Nc3 {[%clk 0:03:00.1]} 3... Bg7 {[%clk 0:02:59.4]}
4. e4 {[%clk 0:02:58.3]} 4... d6 {[%clk 0:02:59.4]} 5. f3 {[%clk 0:02:52]} 5...
O-O {[%clk 0:02:58.6]} 6. Be3 {[%clk 0:02:52.5]} 6... a6 {[%clk 0:02:57.4]} 7.
Bd3 {[%clk 0:02:52.6]} 7... Nfd7 {[%clk 0:02:54.1]} 8. Nge2 {[%clk 0:02:52.6]}
8... c5 {[%clk 0:02:51.6]} 9. O-O {[%clk 0:02:46.6]} 9... Nc6 {[%clk 0:02:49.2]}
10. d5 {[%clk 0:02:37.2]} 10... Nce5 {[%clk 0:02:47]} 11. b3 {[%clk 0:02:28.9]}
11... b5 {[%clk 0:02:41.1]} 12. Rb1 {[%clk 0:02:23]} 12... bxc4 {[%clk
0:02:33.3]} 13. bxc4 {[%clk 0:02:19.4]} 13... Nxd3 {[%clk 0:02:31.4]} 14. Qxd3
{[%clk 0:02:19.4]} 14... Ne5 {[%clk 0:02:31.1]} 15. Qc2 {[%clk 0:02:18.7]} 15...
Nxc4 {[%clk 0:02:30.7]} 16. Bc1 {[%clk 0:02:16.7]} 16... Bd7 {[%clk 0:02:23]}
17. f4 {[%clk 0:02:14]} 17... Qa5 {[%clk 0:02:14.9]} 18. Rb7 {[%clk 0:02:06.5]}
18... Rad8 {[%clk 0:01:11.6]} 19. Qb3 {[%clk 0:01:52.6]} 19... Bd4+ {[%clk
0:00:49.1]} 20. Nxd4 {[%clk 0:01:32.4]} 20... cxd4 {[%clk 0:00:50]} 21. Qxc4
{[%clk 0:01:17]} 21... dxc3 {[%clk 0:00:49.4]} 22. Qb4 {[%clk 0:01:17.9]} 22...
Qxb4 {[%clk 0:00:48]} 23. Rxb4 {[%clk 0:01:17.8]} 23... Bb5 {[%clk 0:00:47.5]}
24. Rf3 {[%clk 0:01:16]} 24... Rc8 {[%clk 0:00:44.9]} 25. a4 {[%clk 0:01:13.5]}
25... Be2 {[%clk 0:00:41.3]} 26. Re3 {[%clk 0:01:13.1]} 26... Bd1 {[%clk
0:00:41]} 27. Kf2 {[%clk 0:01:11]} 27... c2 {[%clk 0:00:27.3]} 28. Reb3 {[%clk
0:00:47.6]} 28... a5 {[%clk 0:00:27]} 29. Rb7 {[%clk 0:00:25]} 29... Rc4 {[%clk
0:00:26.5]} 30. Rxe7 {[%clk 0:00:24.4]} 30... Rxa4 {[%clk 0:00:26.4]} 31. Ke3
{[%clk 0:00:24.4]} 31... Rb4 {[%clk 0:00:19.9]} 32. Rb7 {[%clk 0:00:19.9]} 32...
Rxb3+ {[%clk 0:00:18.8]} 33. Rxb3 {[%clk 0:00:20.3]} 33... a4 {[%clk 0:00:18.6]}
34. Ra3 {[%clk 0:00:15.7]} 34... Ra8 {[%clk 0:00:18.9]} 35. Kd4 {[%clk
0:00:15.4]} 35... f6 {[%clk 0:00:18.5]} 36. Kc4 {[%clk 0:00:14.7]} 36... Kf7
{[%clk 0:00:17.7]} 37. Kb4 {[%clk 0:00:14.9]} 37... Re8 {[%clk 0:00:17]} 38. Re3
{[%clk 0:00:13.2]} 38... Rb8+ {[%clk 0:00:16.5]} 39. Kc3 {[%clk 0:00:09.8]}
39... Rb1 {[%clk 0:00:15.7]} 40. Kd2 {[%clk 0:00:09.7]} 40... f5 {[%clk
0:00:13.8]} 41. exf5 {[%clk 0:00:09.5]} 41... gxf5 {[%clk 0:00:12.7]} 42. Rh3
{[%clk 0:00:07.8]} 42... Rb5 {[%clk 0:00:11.2]} 43. Rxh7+ {[%clk 0:00:07.4]}
43... Kg6 {[%clk 0:00:11.3]} 44. Ra7 {[%clk 0:00:07.6]} 44... Rxd5+ {[%clk
0:00:11.4]} 45. Kc3 {[%clk 0:00:08.1]} 45... Rc5+ {[%clk 0:00:09.8]} 46. Kd3
{[%clk 0:00:08.4]} 46... Rd5+ {[%clk 0:00:07.2]} 47. Kc3 {[%clk 0:00:08.5]}
47... Rc5+ {[%clk 0:00:07.3]} 48. Kd3 {[%clk 0:00:08.3]} 48... Rb5 {[%clk
0:00:07.4]} 49. Rxa4 {[%clk 0:00:07.5]} 49... d5 {[%clk 0:00:06.4]} 50. h3
{[%clk 0:00:06.1]} 50... Kh5 {[%clk 0:00:05.7]} 51. Ra8 {[%clk 0:00:04.5]} 51...
Rb3+ {[%clk 0:00:05.5]} 52. Kd2 {[%clk 0:00:04.4]} 52... Rb1 {[%clk 0:00:03]}
53. Rd8 {[%clk 0:00:03.9]} 53... Rb5 {[%clk 0:00:01.7]} 54. Rg8 {[%clk 0:00:04]}
54... Kh6 {[%clk 0:00:01.9]} 55. g4 {[%clk 0:00:03.3]} 55... fxg4 {[%clk
0:00:01.1]} 56. hxg4 {[%clk 0:00:04.2]} 56... Rb4 {[%clk 0:00:01.6]} 57. Kc3
{[%clk 0:00:03.2]} 57... Rc4+ {[%clk 0:00:01.6]} 58. Kd3 {[%clk 0:00:03.7]}
58... Re4 {[%clk 0:00:02.1]} 59. f5+ {[%clk 0:00:03.2]} 1-0